fUSD/lending_fUSD_20250612
["ID","MTS","AMOUNT","RATE_DAILY","PERIOD"]
[365513921,1749732483552,-500.0,0.00016148,2]
[365513922,1749732483578,-500.0,0.00016148,2]
[365513923,1749732483603,-500.0,0.00016148,2]
[365513924,1749732483629,-381.55354357,0.00016148,2]
[365513925,1749732483653,-500.0,0.00016148,2]
[365513926,1749732483677,-500.0,0.00016148,2]
[365513927,1749732483703,-500.0,0.00016148,2]
[365513928,1749732483727,-500.0,0.00016148,2]
[365513929,1749732483753,-500.0,0.00016148,2]
[365513930,1749732483778,-500.0,0.00016148,2]
[365513931,1749732483802,-500.0,0.00016148,2]
[365513932,1749732483828,-500.0,0.00016148,2]
[365513933,1749732483852,-500.0,0.00016148,2]
[365513934,1749732483877,-224.17758039,0.00016148,2]
[365513935,1749732483900,-500.0,0.00016148,2]
[365513936,1749732483925,-500.0,0.00016148,2]
[365513937,1749732483950,-500.0,0.00016148,2]
[365513938,1749732483974,-500.0,0.00016148,2]
[365513939,1749732483999,-500.0,0.00016148,2]
[365513940,1749732484025,-500.0,0.00016148,2]
[365513941,1749732484050,-500.0,0.00016148,2]
[365513942,1749732484078,-500.0,0.00016148,2]
[365513943,1749732484104,-500.0,0.00016148,2]
[365513944,1749732484130,-500.0,0.00016148,2]
[365513945,1749732484154,-500.0,0.00016148,2]
[365513946,1749732484179,-500.0,0.00016148,2]
[365513947,1749732484204,-500.0,0.00016148,2]
[365513948,1749732484230,-500.0,0.00016148,2]
[365513949,1749732484255,-500.0,0.00016148,2]
[365513950,1749732484279,-500.0,0.00016148,2]
[365513951,1749732484303,-500.0,0.00016148,2]
[365513952,1749732484328,-500.0,0.00016148,2]
[365513953,1749732484352,-500.0,0.00016148,2]
[365513954,1749732484375,-500.0,0.00016148,2]
[365513955,1749732484400,-500.0,0.00016148,2]
[365513956,1749732484425,-500.0,0.00016148,2]
[365513957,1749732484450,-500.0,0.00016148,2]
[365513958,1749732484475,-500.0,0.00016148,2]
[365513959,1749732484500,-500.0,0.00016148,2]
[365513960,1749732484526,-500.0,0.00016148,2]
[365513961,1749732484552,-500.0,0.00016148,2]
[365513962,1749732484578,-500.0,0.00016148,2]
[365513963,1749732484603,-500.0,0.00016148,2]
[365513964,1749732484627,-500.0,0.00016148,2]
[365513965,1749732484653,-500.0,0.00016148,2]
[365513966,1749732484677,-347.10830699,0.00016148,2]
[365513967,1749732484705,-500.0,0.00016148,2]
[365513968,1749732484730,-500.0,0.00016148,2]
[365513969,1749732484755,-500.0,0.00016148,2]
[365513970,1749732484781,-500.0,0.00016148,2]
[365513971,1749732484807,-207.4,0.00016149,2]
[365513972,1749732485012,-500.0,0.00016174,2]
[365513973,1749732485045,-887.84,0.00016177,2]
[365513974,1749732485074,-985.94049368,0.00016314,2]
[365513975,1749732485100,-167.49,0.00016384,2]
[365513976,1749732485127,-246.87,0.00016437,2]
[365513977,1749732485151,-500.0,0.00016438,2]
[365513978,1749732485175,-189.20131672,0.00016438,2]
[365513979,1749732485199,-500.0,0.00016438,2]
[365513980,1749732485224,-500.0,0.00016438,2]
[365513981,1749732485249,-500.0,0.00016438,2]
[365513982,1749732485273,-500.0,0.00016438,2]
[365513983,1749732485297,-500.0,0.00016438,2]
[365513984,1749732485323,-1000.0,0.00016448,2]
[365513985,1749732485346,-200.0,0.00016483,2]
[365513986,1749732485370,-454.96,0.000165,2]
[365513987,1749732485395,-454.96,0.000165,2]
[365513988,1749732485420,-1096.423951,0.0001666,2]
[365513989,1749732485445,-985.94049368,0.00016698,2]
[365513990,1749732485469,-1000.0,0.000167,2]
[365513991,1749732485493,-1008.0,0.000167,2]
[365513992,1749732485517,-186.92,0.00016712,2]
[365513993,1749732485540,-150.0,0.00016735,2]
[365513994,1749732485564,-1000.0,0.00016753,2]
[365513995,1749732485588,-150.0,0.00016842,2]
[365513996,1749732485612,-150.0,0.00016854,2]
[365513997,1749732485636,-200.0,0.00016864,2]
[365513998,1749732485661,-1000.0,0.00016868,2]
[365513999,1749732485684,-867.9924602,0.00016879,2]
[365514000,1749732485711,-151.0,0.0001689,2]
[365514001,1749732485735,-151.0,0.0001689,2]
[365514002,1749732485758,-897.06,0.00016898,2]
[365514003,1749732485785,-393.2368368,0.00016899,2]
[365514004,1749732485811,-393.23683678,0.00016899,2]
[365514005,1749732485835,-393.23683678,0.00016899,2]
[365514006,1749732485859,-393.23683678,0.00016899,2]
[365514007,1749732485884,-393.23683678,0.00016899,2]
[365514008,1749732485909,-393.23683678,0.000169,2]
[365514009,1749732485935,-393.23683678,0.000169,2]
[365514010,1749732485959,-740.9785,0.000169,2]
[365514011,1749732485983,-2500.0,0.000169,2]
[365514012,1749732486007,-393.23683678,0.000169,2]
[365514013,1749732486033,-393.23683678,0.000169,2]
[365514014,1749732486058,-500.0,0.000169,2]
[365514015,1749732486083,-34353.7311,0.000169,2]
[365514016,1749732486107,-1000.0,0.000169,2]
[365514017,1749732486133,-941.08,0.000169,2]
[365514018,1749732486158,-1017.63776309,0.000169,2]
[365514019,1749732486183,-393.23683678,0.000169,2]
[365514020,1749732486206,-5000.0,0.000169,2]
[365514021,1749732486231,-847.805,0.00016904,2]
[365514022,1749732486254,-316.0013757,0.00016907,2]
[365514023,1749732486278,-1000.0,0.0001692,2]
[365514024,1749732486301,-326.2,0.00016942,2]
[365514025,1749732486326,-170.73,0.00016942,2]
[365514026,1749732486350,-354.6,0.00016942,2]
[365514027,1749732486373,-150.0,0.00016942,2]
[365514028,1749732486398,-302.14,0.00016942,2]
[365514029,1749732486423,-909.35,0.00016942,2]
[365514030,1749732486446,-163.45876627,0.00016945,2]
[365514031,1749732486470,-500.0,0.00016973,2]
[365514032,1749732486494,-500.20603089,0.00016973,2]
[365514033,1749732486517,-500.0,0.00016973,2]
[365514034,1749732486541,-500.0,0.00016973,2]
[365514035,1749732486567,-216.84322897,0.00016973,2]
[365514036,1749732486591,-500.0,0.00016973,2]
[365514037,1749732486616,-500.89431666,0.00016973,2]
[365514038,1749732486640,-500.0,0.00016973,2]
[365514039,1749732486664,-500.0,0.00016973,2]
[365514040,1749732486690,-500.0,0.00016973,2]
[365514041,1749732486716,-500.0,0.00016973,2]
[365514042,1749732486739,-500.43773514,0.00016973,2]
[365514043,1749732486762,-502.67181767,0.00016973,2]
[365514044,1749732486788,-551.10846169,0.00016973,2]
[365514045,1749732486813,-6457.5552811,0.00016994,2]
[365514046,1749732486838,-620.8274383,0.00016994,2]
[365514047,1749732486863,-472.6222319,0.00016994,2]
[365514048,1749732486886,-150.0,0.00016994,2]
[365514049,1749732486909,-500.0,0.00016994,2]
[365514050,1749732486933,-150.0,0.00016994,2]
[365514051,1749732486957,-1116.0,0.00016994,2]
[365514052,1749732486981,-256.77890873,0.00016994,2]
[365514053,1749732487004,-150.0,0.00016994,2]
[365514054,1749732487028,-187.31,0.00016999,2]
[365514055,1749732487052,-500.0,0.00016999,2]
[365514056,1749732487077,-500.0,0.00016999,2]
[365514057,1749732487100,-150.0,0.00016999,2]
[365514058,1749732487124,-500.0,0.00016999,2]
[365514059,1749732487148,-500.0,0.00016999,2]
[365514060,1749732487171,-150.0,0.00016999,2]
[365514061,1749732487193,-150.0,0.00016999,2]
[365514062,1749732487216,-217.87120195,0.00016999,2]
[365514063,1749732487238,-500.0,0.00016999,2]
[365514064,1749732487261,-369.41769962,0.00016999,2]
[365514065,1749732487284,-311.80033083,0.00016999,2]
[365514066,1749732487307,-166.20774899,0.00016999,2]
[365514067,1749732487333,-566.0,0.00017,2]
[365514068,1749732487360,-573167.14859695,0.00017,3]
[365514069,1749732494188,242.0,0.00015141,2]
[365514070,1749732494567,242.0,0.00015594,2]
[365514071,1749732494935,-238.06848118,0.00016005,2]
[365514072,1749732496850,-61.93151882,0.00016005,2]
[365514073,1749732496873,-145.53501495,0.00016006,4]
[365514074,1749732501170,-324.2948583,0.00016006,4]
[365514075,1749732501582,503.37290142,0.00017,5]
[365514076,1749732502858,-130.17012675,0.00016006,4]
[365514077,1749732502882,-24.7967155,0.00016047,3]
[365514078,1749732509828,-169.1295737,0.00016047,3]
[365514079,1749732514031,-48.0737108,0.00016047,3]
[365514080,1749732514053,-200.51618697,0.00016072,2]
[365514081,1749732515865,-256.2396173,0.00016072,2]
[365514082,1749732518490,-260.9956737,0.00016072,2]
[365514083,1749732520811,2500.0,0.00024658,120]
[365514085,1749732524990,-201.0,0.0001603,2]
[365514086,1749732528242,7490.06433466,0.00016,3]
[365514087,1749732528265,9516.07310496,0.00016,3]
[365514088,1749732528319,483.92689504,0.00015141,2]
[365514089,1749732528345,92.07310496,0.00015141,2]
[365514090,1749732530721,2500.0,0.00016001,2]
[365514091,1749732531674,-260.9956737,0.0001603,2]
[365514094,1749732534731,-256.2396173,0.0001603,2]
[365514095,1749732550743,-200.51618697,0.0001603,2]
[365514096,1749732551844,-166.05852203,0.0001603,2]
[365514097,1749732551868,-1686.35852203,0.00016072,2]
[365514098,1749732551891,-151.0,0.00016125,2]
[365514099,1749732551914,-550.0,0.00016147,2]
[365514100,1749732551937,-500.0,0.00016174,2]
[365514101,1749732551959,-151.0,0.00016186,2]
[365514102,1749732551982,-151.0,0.00016215,2]
[365514103,1749732552005,-151.0,0.00016304,2]
[365514104,1749732552028,-77.03795594,0.00016391,2]
[365514105,1749732552118,-73.96204406,0.00016391,2]
[365514106,1749732552143,-242.0,0.000165,3]
[365514107,1749732552166,-939.791958,0.0001666,2]
[365514108,1749732552189,-451.0,0.0001675,2]
[365514109,1749732552212,-1520.0,0.00016767,2]
[365514110,1749732552236,-278.05609054,0.00016798,2]
[365514111,1749732552260,-78.6449074,0.000168,2]
[365514112,1749732552393,201.0,0.00015141,2]
[365514113,1749732552421,-376.3150926,0.000168,2]
[365514114,1749732552445,-168.0,0.00016829,2]
[365514115,1749732552467,-445.0,0.00016834,2]
[365514116,1749732552491,-1860.0,0.00016851,2]
[365514117,1749732552515,-734.1399074,0.00016852,2]
[365514118,1749732552638,-115.76937654,0.00016852,2]
[365514119,1749732552662,-500.0,0.00016899,2]
[365514120,1749732552687,-500.0,0.00016899,2]
[365514121,1749732552711,-484.25498502,0.00016899,2]
[365514122,1749732552738,-354.35570186,0.00016899,2]
[365514123,1749732552763,-589.26273445,0.00016899,2]
[365514124,1749732552788,-500.0,0.00016899,2]
[365514125,1749732552818,-500.0,0.00016899,2]
[365514126,1749732552842,-39.81220213,0.00016899,2]
[365514127,1749732552915,-460.18779787,0.00016899,2]
[365514128,1749732552939,-500.0,0.00016899,2]
[365514129,1749732552963,-264.6170604,0.00016899,2]
[365514130,1749732552986,-342.71381464,0.00016899,2]
[365514131,1749732553011,-500.0,0.00016899,2]
[365514132,1749732553035,-500.0,0.00016899,2]
[365514133,1749732553060,-500.0,0.00016899,2]
[365514134,1749732553084,-330.54031721,0.00016899,2]
[365514135,1749732553106,-185.39600988,0.000169,2]
[365514136,1749732553248,-3583.455,0.000169,2]
[365514137,1749732553561,-3583.455,0.000169,2]
[365514138,1749732553687,-3583.455,0.000169,2]
[365514139,1749732553739,-3583.455,0.000169,2]
[365514140,1749732553843,-3583.455,0.000169,2]
[365514141,1749732562467,166.7,0.0001578,2]
[365514142,1749732607019,3564.13,0.00015982,2]
[365514143,1749732612641,1024.0,0.00015141,2]
[365514144,1749732629325,-775.55,0.0001603,2]
[365514145,1749732629349,-2729.105,0.0001603,2]
[365514146,1749732629538,-21.895,0.0001603,2]
[365514147,1749732629561,-600.0,0.0001613,4]
[365514148,1749732629583,-517.235291,0.00016229,2]
[365514149,1749732629606,-621.0254001,0.00016294,2]
[365514150,1749732629630,-1000.0,0.00016311,2]
[365514151,1749732629653,-176.49283414,0.00016362,2]
[365514152,1749732629677,-568.00647476,0.00016447,2]
[365514153,1749732629745,-124.82451123,0.00016447,2]
[365514154,1749732629769,-151.0,0.00016552,2]
[365514155,1749732629793,-151.0,0.00016622,2]
[365514156,1749732629815,-151.0,0.00016641,2]
[365514157,1749732629840,-151.0,0.00016666,2]
[365514158,1749732629863,-300.0,0.00016899,2]
[365514159,1749732630176,-1200.0,0.00016899,2]
[365514160,1749732630199,-1000.0,0.000169,2]
[365514161,1749732630222,-275.83048877,0.000169,2]
[365514162,1749732630311,-3504.655,0.000169,2]
[365514163,1749732630364,-3504.655,0.000169,2]
[365514164,1749732630484,-3504.655,0.000169,2]
[365514165,1749732630528,-3504.655,0.000169,2]
[365514166,1749732630640,-3504.655,0.000169,2]
[365514167,1749732630715,-3504.655,0.000169,2]
[365514168,1749732630790,-3504.655,0.000169,2]
[365514326,1749732634103,-4804.90532522,0.000169,2]
[365514329,1749732634119,-36866.53418601,0.000169,2]
[365514331,1749732634130,-1000.0,0.000169,2]
[365514333,1749732634139,-1685.3671,0.000169,2]
[365514335,1749732634150,-9275.4144943,0.000169,2]
[365514337,1749732634161,-2024.18470446,0.000169,2]
[365514339,1749732634173,-1067.12521018,0.000169,2]
[365514838,1749732639102,-2226.55,0.00016046,2]
[365514840,1749732639112,-25175.37448118,0.000169,2]
[365514842,1749732639121,-2197.12593916,0.000169,2]
[365514844,1749732639131,-516.46611128,0.000169,2]
[365514846,1749732639141,-289.07401575,0.000169,2]
[365514848,1749732639150,-208.45400844,0.00016917,2]
[365514850,1749732639159,-441.0,0.00016934,2]
[365514852,1749732639168,-1067.99411149,0.00016942,2]
[365514854,1749732639181,-753.53588851,0.00016942,2]
[365514856,1749732639190,-408.07351866,0.0001695,2]
[365514904,1749732639632,-75.80138338,0.0001695,2]
[365514906,1749732639642,-242.0,0.00016953,4]
[365514908,1749732639652,-500.0,0.00016973,2]
[365514910,1749732639661,-500.0,0.00016973,2]
[365514912,1749732639670,-458.35432163,0.00016973,2]
[365514914,1749732639681,-303.86362863,0.00016973,2]
[365514916,1749732639693,-196.13637137,0.00016973,2]
[365514918,1749732639703,-500.0,0.00016973,2]
[365514920,1749732639712,-500.0,0.00016973,2]
[365514922,1749732639722,-170.49396156,0.0001699,2]
[365514924,1749732639731,-393.61,0.0001699,2]
[365514926,1749732639741,-393.61,0.0001699,2]
[365514928,1749732639753,-393.61,0.0001699,2]
[365514930,1749732639763,-393.61,0.0001699,2]
[365514932,1749732639772,-393.61,0.0001699,2]
[365514934,1749732639786,-150.0,0.0001699,2]
[365514936,1749732639795,-500.0,0.0001699,2]
[365514938,1749732639805,-1310.452391,0.00016999,2]
[365515004,1749732640532,-2834.36452973,0.00016999,2]
[365515006,1749732640542,-505.0,0.00017,2]
[365515008,1749732640552,-4503.04786872,0.00017,3]
[365515010,1749732640563,-1077.73973433,0.00017,3]
[365515051,1749732640939,-9393.01502024,0.00017,3]
[365515053,1749732640948,-385927.23940242,0.00017,3]
[365515055,1749732640957,-2556896.12006365,0.00017,2]
[365515134,1749732641687,-61.12368052,0.00017,2]
[365515136,1749732641699,-5841.70785428,0.00017,2]
[365515138,1749732641711,-4289.33376516,0.00017,2]
[365515145,1749732641766,-4697.97039617,0.00017,2]
[365515147,1749732641778,-5362.203,0.00017,2]
[365515190,1749732642170,303.0,0.00015141,2]
[365515251,1749732643158,-1852.42,0.00016046,2]
[365515253,1749732643168,-6092.5800005,0.00016208,2]
[365515265,1749732643239,-1446.2199995,0.00016208,2]
[365515268,1749732643249,-151.0,0.00016603,2]
[365515271,1749732643259,-4132.20378784,0.00017,2]
[365515274,1749732643270,-373.03151902,0.00017,2]
[365515279,1749732643290,-855.69154277,0.00017,2]
[365515342,1749732645644,-1835.12587825,0.00017,2]
[365515343,1749732645666,-106625.146283,0.00017,2]
[365515344,1749732645800,-886.025,0.00017,2]
[365515345,1749732645812,-2310.05808,0.00017,2]
[365515346,1749732645825,-8169.23266598,0.00017,2]
[365515347,1749732645837,-38857.77155953,0.00017,2]
[365515348,1749732645848,-13285.7877851,0.00017,2]
[365515349,1749732645889,-2611.80411334,0.00017,2]
[365515350,1749732645899,-2136.9813382,0.00017,2]
[365515351,1749732645910,-2623.66314732,0.00017,2]
[365515403,1749732647582,-391.46159983,0.00017,2]
[365515404,1749732647593,-2124.05468555,0.00017,2]
[365515405,1749732673336,1900.0,0.00012886,2]
[365515406,1749732675178,249.09689504,0.00014256,2]
[365515407,1749732675200,1650.90310496,0.00014256,2]
[365515408,1749732676715,1900.0,0.00015626,2]
[365515409,1749732708209,900.0,0.00015078,2]
[365515410,1749732723591,-200.0,0.0001603,2]
[365515411,1749732723616,-728.39,0.0001603,2]
[365515412,1749732723640,-900.0,0.00016448,2]
[365515413,1749732723663,-300.0,0.00016482,2]
[365515414,1749732723686,-2712.14,0.00016483,2]
[365515415,1749732770530,906.68,0.00015926,2]
[365515416,1749732771160,-205.00971495,0.00016029,2]
[365515417,1749732777316,-199.22388001,0.00016029,2]
[365515418,1749732783511,514.90971,0.00019411,30]
[365515419,1749732789850,2394.33,0.00015916,2]
[365515420,1749732790103,2248.08689504,0.00015916,2]
[365515421,1749732790127,10000.0,0.00015916,2]
[365515422,1749732790150,10000.0,0.00015916,2]
[365515423,1749732790172,1651.91310496,0.00015916,2]
[365515425,1749732792123,1059.5613,0.00015141,2]
[365515426,1749732795091,1051.807607,0.00015948,2]
[365515427,1749732796509,420.05,0.00015931,2]
[365515428,1749732823847,666.0,0.0001586,2]
[365515429,1749732841340,500.0,0.00015859,2]
[365515430,1749732864998,-185.01211623,0.00016029,2]
[365515431,1749732867686,-181.69588636,0.00016029,2]
[365515432,1749732870857,-152.5606783,0.00016029,2]
[365515433,1749732873086,-292.77322553,0.00016029,2]
[365515434,1749732876245,-379.76551022,0.00016029,2]
[365515435,1749732879260,-208.62809662,0.00016029,2]
[365515436,1749732881273,-309.20863847,0.00016029,2]
[365515437,1749732884708,-250.0,0.00016029,2]
[365515438,1749732885756,430.81845189,0.0001593,2]
[365515439,1749732886386,-250.16446396,0.00016029,2]
[365515440,1749732890065,3607.38,0.00015735,2]
[365515441,1749732890510,-188.17687768,0.00016029,2]
[365515442,1749732895633,-161.1233,0.00016029,2]
[365515443,1749732897958,-248.5341741,0.00016029,2]
[365515444,1749732900941,201.51721791,0.00015949,2]
[365515445,1749732909299,410.95231824,0.00013982,2]
[365515446,1749732909321,1089.04768176,0.00013982,2]
[365515447,1749732910908,1500.0,0.00015352,2]
[365515448,1749732924197,-256.04178212,0.00016029,2]
[365515449,1749732925755,-262.22650481,0.00016029,2]
[365515450,1749732927734,-308.18793147,0.00016029,2]
[365515451,1749732930543,-288.37076245,0.00016029,2]
[365515452,1749732932712,-87.29645672,0.00016029,2]
[365515453,1749732932737,-162.70354328,0.0001603,2]
[365515454,1749732934478,-283.00080979,0.0001603,2]
[365515455,1749732937950,-220.04675857,0.0001603,2]
[365515456,1749732943208,-292.11992471,0.0001603,2]
[365515457,1749732946164,-42.12896365,0.0001603,2]
[365515458,1749732972697,150.0,0.00015623,7]
[365515459,1749732990072,250.0,0.00015631,2]
[365515460,1749733001691,3344.02,0.00015629,2]
[365515461,1749733016310,3816.93231824,0.00015644,2]
[365515462,1749733016333,2721.04768176,0.00015644,2]
[365515463,1749733024786,3011.24,0.00014112,2]
[365515464,1749733033047,200.0,0.00015643,2]
[365515465,1749733042719,187.15,0.00015643,2]
[365515466,1749733042953,187.15,0.00015647,2]
[365515467,1749733043117,187.15,0.00015651,2]
[365515468,1749733043688,187.15,0.00015655,2]
[365515469,1749733043819,187.15,0.00015659,2]
[365515470,1749733044077,187.15,0.00015663,2]
[365515471,1749733044230,187.15,0.00015667,2]
[365515472,1749733044420,187.15,0.00015671,2]
[365515473,1749733044680,187.15,0.00015675,2]
[365515474,1749733044831,187.15,0.0001568,2]
[365515475,1749733045021,187.15,0.00015684,2]
[365515476,1749733045216,187.15,0.00015688,2]
[365515477,1749733045605,187.15,0.00015692,2]
[365515478,1749733045743,187.15,0.00015696,2]
[365515479,1749733045870,187.15,0.000157,2]
[365515480,1749733046076,187.15,0.00015704,2]
[365515481,1749733046287,187.15,0.00015708,2]
[365515482,1749733046479,187.15,0.00015712,2]
[365515483,1749733046687,187.15,0.00015717,2]
[365515484,1749733046912,187.15,0.00015721,2]
[365515486,1749733061085,324.71231824,0.00015643,2]
[365515487,1749733061107,10000.0,0.00015643,2]
[365515488,1749733061129,100.39768176,0.00015643,2]
[365515489,1749733090240,9899.60231824,0.0001565,2]
[365515490,1749733090262,6604.91768176,0.0001565,2]
[365515491,1749733105246,900.0,0.00015078,2]
[365515493,1749733141744,169.62,0.00015659,2]
[365515494,1749733145790,1300.0,0.00013982,2]
[365515495,1749733147414,250.13906649,0.00015352,2]
[365515496,1749733147452,1025.46231824,0.00015352,2]
[365515497,1749733147474,24.39861527,0.00015352,2]
[365515498,1749733211760,258.0,0.00015406,2]
[365515499,1749733212077,258.0,0.00015857,2]
[365515500,1749733250574,1774.0,0.00015406,2]
[365515501,1749733252416,-180.0,0.00016037,2]
[365515502,1749733264751,2651.514611,0.000168,10]
[365515503,1749733284572,-226.5,0.00016037,2]
[365515504,1749733307648,404.22,0.00015614,2]
[365515505,1749733318526,248.81,0.00015614,2]
[365515506,1749733384930,6421.52,0.00015612,2]
[365515507,1749733429367,611.05138473,0.00013699,2]
[365515508,1749733429392,388.94861527,0.00013699,2]
[365515510,1749733434291,167.1,0.00015647,2]
[365515511,1749733453536,398.8,0.00015763,2]
[365515512,1749733473101,2719.06,0.00015657,2]
[365515513,1749733501601,717.75,0.00015659,2]
[365515514,1749733504025,129430.20300178,0.00017,5]
[365515515,1749733520399,780.36,0.00024658,120]
[365515516,1749733573165,250.0,0.00015307,2]
[365515517,1749733573420,250.0,0.00015759,2]
[365515518,1749733585843,150.0,0.00015659,2]
[365515519,1749733591685,4958.34138473,0.00015644,2]
[365515520,1749733591707,10000.0,0.00015644,2]
[365515521,1749733591728,10000.0,0.00015644,2]
[365515522,1749733591749,4377.43861527,0.00015644,2]
[365515523,1749733602011,1043.0,0.00015307,2]
[365515524,1749733612938,3168.11,0.00015659,2]
[365515525,1749733625288,1411.45138473,0.00015647,2]
[365515526,1749733625309,88.54861527,0.00015647,2]
[365515527,1749733640730,732.15,0.00015645,2]
[365515528,1749733660325,200.0,0.00015649,2]
[365515529,1749733748329,8979.30138473,0.000156,2]
[365515530,1749733748356,10000.0,0.000156,2]
[365515531,1749733748378,10000.0,0.000156,2]
[365515532,1749733748401,10000.0,0.000156,2]
[365515533,1749733748423,10000.0,0.000156,2]
[365515534,1749733748445,10000.0,0.000156,2]
[365515535,1749733748467,10000.0,0.000156,2]
[365515536,1749733748490,10000.0,0.000156,2]
[365515537,1749733748512,1020.69861527,0.000156,2]
[365515538,1749733754875,736.03,0.00015659,2]
[365515539,1749733798168,1000.0,0.00015668,2]
[365515541,1749733811963,416.00006,0.00015307,2]
[365515542,1749733819827,352.18,0.00015659,2]
[365515543,1749733832213,-250.0,0.00016097,2]
[365515545,1749733832223,-287.21230126,0.00016105,2]
[365515547,1749733832232,-300.0,0.00016107,2]
[365515549,1749733832241,-300.0,0.00016145,2]
[365515550,1749733832250,-500.0,0.00016174,2]
[365515551,1749733832259,-152.34,0.00016178,2]
[365515552,1749733832268,-207.4,0.00016184,2]
[365515553,1749733832278,-151.0,0.0001621,2]
[365515554,1749733832287,-250.0,0.0001621,3]
[365515555,1749733832295,-151.0,0.00016215,2]
[365515556,1749733832304,-151.0,0.00016222,2]
[365515557,1749733832313,-151.0,0.00016229,2]
[365515558,1749733832322,-150.0,0.00016285,2]
[365515559,1749733832331,-940.1277,0.00016356,2]
[365515560,1749733832340,-151.0,0.00016366,2]
[365515561,1749733832349,-86.70260719,0.00016366,2]
[365515562,1749733832395,-64.29739281,0.00016366,2]
[365515563,1749733832405,-343.70676281,0.00016371,2]
[365515565,1749733832439,-206.29323719,0.00016371,2]
[365515566,1749733832449,-300.0,0.00016371,2]
[365515568,1749733832458,-131.01594923,0.00016371,2]
[365515571,1749733832470,-168.98405077,0.00016371,2]
[365515573,1749733832480,-248.75801539,0.00016371,2]
[365515575,1749733832491,-951.24198461,0.00016371,2]
[365515576,1749733832501,-300.0,0.00016371,2]
[365515577,1749733832510,-500.0,0.00016372,2]
[365515578,1749733832520,-500.0,0.00016372,2]
[365515579,1749733832529,-80.73026799,0.00016372,2]
[365515580,1749733832541,-311.15888788,0.00016372,2]
[365515581,1749733832551,-500.0,0.00016372,2]
[365515582,1749733832560,-127.32938054,0.00016372,2]
[365515583,1749733832588,-372.67061946,0.00016372,2]
[365515584,1749733832598,-500.0,0.00016372,2]
[365515585,1749733832607,-500.0,0.00016372,2]
[365515586,1749733832617,-154.57594596,0.00016372,2]
[365515587,1749733832627,-423.48800138,0.00016372,2]
[365515588,1749733832637,-186.38989364,0.00016372,2]
[365515589,1749733832649,-500.0,0.00016372,2]
[365515590,1749733832658,-89.36208852,0.00016372,2]
[365515591,1749733832755,-410.63791148,0.00016372,2]
[365515592,1749733832764,-412.34771166,0.00016372,2]
[365515634,1749733838727,-287.21230125,0.00016191,2]
[365515636,1749733838736,-87.65228834,0.00016372,2]
[365515638,1749733838746,-298.4351018,0.00016372,2]
[365515640,1749733838757,-201.5648982,0.00016372,2]
[365515642,1749733838767,-500.0,0.00016372,2]
[365515644,1749733838776,-500.0,0.00016372,2]
[365515646,1749733838785,-500.0,0.00016372,2]
[365515648,1749733838795,-500.0,0.00016372,2]
[365515650,1749733838804,-500.0,0.00016372,2]
[365515652,1749733838815,-500.0,0.00016372,2]
[365515654,1749733838823,-500.0,0.00016372,2]
[365515656,1749733838833,-500.0,0.00016372,2]
[365515658,1749733838843,-500.0,0.00016372,2]
[365515660,1749733838852,-500.0,0.00016372,2]